bitfinex-derivatives/quotes_BTCF0:USTF0_20241210
["timestamp","ask_amount","ask_price","bid_price","bid_amount"]
[1733853194358,0.052699,94845.0,94824.0,0.00107998]
[1733853194359,0.36092,94844.0,94824.0,0.00107998]
[1733853194556,0.3608,94826.0,94825.0,0.05271]
[1733853194756,0.3608,94835.0,94833.0,0.052705]
[1733853194951,0.3608,94835.0,94824.0,0.00107998]
[1733853194952,0.3608,94844.0,94824.0,0.00107998]
[1733853195157,0.3608,94844.0,94843.0,0.0527]
[1733853195468,0.3608,94844.0,94843.0,0.05599545]
[1733853195967,0.3608,94844.0,94843.0,0.0527]
[1733853196170,0.052696,94850.0,94848.0,0.052697]
[1733853196456,0.3608,94854.0,94853.0,0.052694]
[1733853196658,0.3608,94854.0,94853.0,0.05598952]
[1733853197163,0.052695,94852.0,94851.0,0.052695]
[1733853197462,0.05280685,94858.0,94857.0,0.052692]
[1733853197653,0.00011485,94858.0,94857.0,0.052692]
[1733853197855,0.00011485,94858.0,94857.0,0.052752]
[1733853198361,0.0913,94869.0,94868.0,0.052686]
[1733853198362,0.052686,94869.0,94868.0,0.052686]
[1733853198758,0.052686,94869.0,94868.0,0.052746]
[1733853198968,0.052679,94882.0,94868.0,6e-05]
[1733853199263,0.3608,94883.0,94882.0,0.052678]
[1733853199465,0.3608,94883.0,94868.0,6e-05]
[1733853199658,0.3608,94883.0,94840.0,0.052701]
[1733853199659,0.052696,94850.0,94840.0,0.052701]
[1733853199854,0.77439389,94850.0,94830.0,0.052707]
[1733853200186,0.77439389,94850.0,94821.0,0.04597684]
[1733853200459,0.72169789,94850.0,94848.0,0.052697]
[1733853201654,0.72169789,94850.0,94828.0,0.413508]
[1733853201655,0.72169789,94850.0,94844.0,0.052699]
[1733853201856,0.72169789,94850.0,94848.0,0.01183681]
[1733853202053,0.72169789,94850.0,94848.0,0.06453281]
[1733853203659,9.789e-05,94850.0,94848.0,0.06453281]
[1733853203967,0.3608,94877.0,94874.0,0.052682]
[1733853204156,0.052682,94875.0,94874.0,0.052682]
[1733853204554,0.3,94875.0,94851.0,0.18838967]
[1733853204759,0.3,94875.0,94849.0,6e-05]
[1733853204760,0.052696,94850.0,94849.0,6e-05]
[1733853204955,0.052777,94850.0,94849.0,6e-05]
[1733853208168,8.1e-05,94850.0,94849.0,0.052756]
[1733853208469,8.1e-05,94850.0,94849.0,0.413556]
[1733853208673,8.1e-05,94850.0,94849.0,0.37248844]
[1733853208972,8.1e-05,94850.0,94849.0,0.42518444]
[1733853210360,8.1e-05,94850.0,94849.0,0.72518444]
[1733853210562,0.3608,94867.0,94866.0,0.052687]
[1733853210762,0.12331387,94892.0,94876.0,0.052681]
[1733853210763,0.052676,94886.0,94876.0,0.052681]
[1733853210969,0.3608,94888.0,94864.0,0.3608]
[1733853210970,0.052679,94882.0,94881.0,0.052678]
[1733853211169,0.3608,94888.0,94873.0,0.3608]
[1733853211382,0.052676,94886.0,94885.0,0.052676]
[1733853211668,0.052676,94886.0,94873.0,0.3608]
[1733853211669,0.05267,94896.0,94895.0,0.052671]
[1733853212665,0.05277971,94896.0,94895.0,0.052671]
[1733853212861,0.05277971,94896.0,94874.0,0.052682]
[1733853212862,0.66090971,94896.0,94880.0,0.18861887]
[1733853213057,0.052683,94874.0,94850.0,0.18861887]
[1733853213265,0.052683,94874.0,94840.0,0.25309212]
[1733853213266,0.413486,94867.0,94866.0,6.6e-07]
[1733853213470,2.0059714,94867.0,94866.0,6.6e-07]
[1733853213663,0.413486,94867.0,94866.0,6.6e-07]
[1733853213862,0.3608,94867.0,94866.0,0.05268766]
[1733853214070,0.413486,94867.0,94866.0,6.6e-07]
[1733853214267,2.213486,94867.0,94866.0,6.6e-07]
[1733853214773,2.2247336,94867.0,94866.0,6.6e-07]
[1733853216166,2.3158336,94867.0,94866.0,6.6e-07]
[1733853216372,2.44010776,94867.0,94866.0,6.6e-07]
[1733853216569,2.3158336,94867.0,94866.0,6.6e-07]
[1733853217670,2.10914073,94867.0,94866.0,6.6e-07]
[1733853217863,2.3158336,94867.0,94866.0,6.6e-07]
[1733853218069,2.0158336,94867.0,94866.0,6.6e-07]
[1733853219176,0.64025084,94867.0,94866.0,6.6e-07]
[1733853219473,0.5158336,94867.0,94866.0,6.6e-07]
[1733853219683,0.609135,94867.0,94866.0,6.6e-07]
[1733853220080,0.4247336,94867.0,94866.0,6.6e-07]
[1733853220269,0.413486,94867.0,94866.0,6.6e-07]
[1733853220780,0.413486,94867.0,94849.0,6e-05]
[1733853220781,0.052696,94850.0,94849.0,6e-05]
[1733853221077,0.774296,94850.0,94849.0,6e-05]
[1733853221273,0.774416,94850.0,94849.0,6e-05]
[1733853224570,0.89884389,94850.0,94849.0,6e-05]
[1733853224975,0.774416,94850.0,94849.0,6e-05]
[1733853225378,0.91021356,94850.0,94849.0,6e-05]
[1733853225572,0.413616,94850.0,94849.0,6e-05]
[1733853226171,0.00012,94850.0,94849.0,6e-05]
[1733853226372,0.3608,94865.0,94849.0,6e-05]
[1733853226587,0.09359564,94873.0,94864.0,0.052688]
[1733853226588,0.02166486,94870.0,94864.0,0.052688]
[1733853226774,0.052685,94869.0,94868.0,0.052686]
[1733853226977,0.00010742,94873.0,94872.0,0.052684]
[1733853227181,0.052681,94877.0,94875.0,0.052682]
[1733853227575,0.052681,94877.0,94876.0,0.052741]
[1733853227980,0.00012,94881.0,94880.0,0.052679]
[1733853228181,0.00024433,94881.0,94880.0,0.052679]
[1733853228371,0.052675,94888.0,94880.0,0.052679]
[1733853228372,0.052675,94888.0,94887.0,0.052675]
[1733853228683,0.1,94900.0,94899.0,0.052669]
[1733853228873,0.1,94900.0,94899.0,0.413469]
[1733853228874,0.05,94900.0,94899.0,0.413469]
[1733853229078,0.09348822,94914.0,94900.0,0.052668]
[1733853229371,0.09348822,94914.0,94899.0,0.36086]
[1733853229372,0.05266,94914.0,94913.0,6e-05]
[1733853230184,0.3608,94927.0,94913.0,6e-05]
[1733853230388,0.09348822,94954.0,94925.0,0.3608]
[1733853230687,0.09348822,94954.0,94953.0,0.36086]
[1733853230688,0.052638,94954.0,94953.0,0.36086]
[1733853230878,0.05277325,94954.0,94953.0,0.36086]
[1733853231585,0.00013525,94954.0,94953.0,0.36086]
[1733853231780,0.00013525,94954.0,94953.0,0.413499]
[1733853232782,0.3608,94980.0,94953.0,0.37199095]
[1733853232984,0.052625,94979.0,94975.0,0.052626]
[1733853233288,0.3608,94980.0,94975.0,0.052626]
[1733853233488,0.052625,94977.0,94975.0,0.052626]
[1733853233685,0.0001051,94976.0,94975.0,0.052626]
[1733853234685,0.0001051,94976.0,94975.0,0.413426]
[1733853235483,0.152613,95000.0,94975.0,0.713426]
[1733853235784,0.152613,95000.0,94999.0,0.052673]
[1733853235785,0.1,95000.0,94999.0,0.052673]
[1733853236478,0.10012864,95000.0,94999.0,0.052673]
[1733853236877,0.10012864,95000.0,94999.0,0.36086]
[1733853237087,0.052625,94978.0,94968.0,0.3608]
[1733853237388,0.052621,94985.0,94977.0,0.052625]
[1733853237682,0.052627,94975.0,94970.0,0.052629]
[1733853237884,1.5,94978.0,94968.0,0.37229006]
[1733853238082,1.50060001,94978.0,94975.0,0.052626]
[1733853238284,1.50060001,94978.0,94968.0,0.37229006]
[1733853238285,1.5,94978.0,94968.0,0.42492006]
[1733853238592,0.052631,94967.0,94962.0,0.052633]
[1733853238886,0.00012,94963.0,94962.0,0.052633]
[1733853239384,0.00012,94963.0,94962.0,0.0640947]
[1733853239781,0.00012,94963.0,94925.0,0.36238011]
[1733853239782,1.86104794,94963.0,94925.0,0.36238011]
[1733853239994,0.052642,94948.0,94925.0,0.36238011]
[1733853240288,0.052648,94937.0,94933.0,0.05265]
[1733853240486,0.052652,94930.0,94925.0,0.00158011]
[1733853240690,0.3608,94929.0,94925.0,0.00158011]
[1733853241582,0.052652,94930.0,94925.0,0.00158011]
[1733853242177,0.3608,94929.0,94925.0,0.00158011]
[1733853243491,0.3608,94929.0,94904.0,0.3608]
[1733853243492,0.36091808,94929.0,94904.0,0.413466]
[1733853243676,0.36091808,94929.0,94907.0,0.01129233]
[1733853244682,0.36091808,94929.0,94928.0,8e-07]
[1733853247384,0.00011808,94929.0,94928.0,8e-07]
[1733853247581,0.3608,94948.0,94928.0,8e-07]
[1733853247997,0.3608,94948.0,94946.0,0.052642]
[1733853248192,0.36136001,94959.0,94950.0,0.05264]
[1733853248496,0.413435,94959.0,94958.0,6e-05]
[1733853248797,0.4135539,94959.0,94958.0,6e-05]
[1733853249993,0.3609189,94959.0,94958.0,6e-05]
[1733853250684,0.0001189,94959.0,94958.0,6e-05]
[1733853251088,0.3608,94969.0,94958.0,6e-05]
[1733853251295,0.3608,94979.0,94965.0,0.3608]
[1733853251296,0.052626,94977.0,94965.0,0.3608]
[1733853251597,0.052626,94977.0,94975.0,0.052626]
[1733853251896,0.3608,94979.0,94968.0,6e-05]
[1733853252097,0.05263,94969.0,94968.0,6e-05]
[1733853252302,0.052637,94956.0,94954.0,0.3608]
[1733853252486,0.05275,94969.0,94936.0,0.3608]
[1733853252487,0.052639,94953.0,94950.0,0.01162815]
[1733853252791,0.052639,94953.0,94936.0,0.3608]
[1733853252792,0.00012,94951.0,94936.0,0.3608]
[1733853252996,0.00012,94951.0,94950.0,0.05264]
[1733853253590,0.24627131,94966.0,94948.0,0.3608]
[1733853253591,0.052638,94955.0,94948.0,0.3608]
[1733853254089,0.3608,94969.0,94954.0,6e-05]
[1733853254293,0.00010247,94978.0,94954.0,6e-05]
[1733853254488,0.00010247,94978.0,94948.0,0.37187472]
[1733853254489,0.3608,94965.0,94948.0,0.37187472]
[1733853254690,0.052639,94952.0,94949.0,0.052641]
[1733853256210,0.24627131,94960.0,94948.0,0.37187472]
[1733853256500,0.24627131,94960.0,94937.0,0.00157992]
[1733853256501,0.3608,94957.0,94937.0,0.00157992]
[1733853256690,0.052647,94939.0,94937.0,0.00157992]
[1733853256888,0.00012,94938.0,94937.0,0.00157992]
[1733853257192,0.3608,94976.0,94937.0,0.36237992]
[1733853257392,0.052636,94958.0,94956.0,0.052637]
[1733853257597,0.052638,94955.0,94940.0,0.18861887]
[1733853257897,0.052638,94955.0,94953.0,0.052639]
[1733853259192,0.052635,94961.0,94949.0,0.052641]
[1733853259395,0.052635,94961.0,94937.0,0.61389055]
[1733853259396,0.24627131,94960.0,94941.0,0.18861887]
[1733853259591,0.052644,94943.0,94937.0,0.55099879]
[1733853259801,0.052644,94943.0,94941.0,0.052645]
[1733853261398,0.3608,94954.0,94937.0,0.36237992]
[1733853261399,0.052647,94938.0,94937.0,0.00157992]
[1733853261600,0.052647,94938.0,94928.0,0.18826489]
[1733853261601,0.00012104,94938.0,94928.0,0.18826489]
[1733853261903,0.052652,94929.0,94928.0,8e-07]
[1733853262799,0.00024104,94938.0,94933.0,0.052649]
[1733853263003,0.00024104,94938.0,94936.0,0.052648]
[1733853263398,0.00024104,94938.0,94937.0,0.3608]
[1733853263996,0.3608,94951.0,94937.0,0.54906409]
[1733853264193,0.24627131,94950.0,94939.0,0.052646]
[1733853264396,0.052644,94944.0,94941.0,0.052645]
[1733853264595,0.052644,94944.0,94937.0,0.3608]
[1733853264596,0.052644,94944.0,94942.0,0.052645]
[1733853265003,0.00012982,94943.0,94942.0,0.052645]
[1733853266405,0.052652,94929.0,94928.0,8e-07]
[1733853266607,0.413452,94929.0,94928.0,8e-07]
[1733853266801,0.413572,94929.0,94928.0,8e-07]
[1733853268207,0.713572,94929.0,94928.0,8e-07]
[1733853268400,0.052667,94903.0,94889.0,0.18826409]
[1733853268601,0.052679,94881.0,94879.0,0.18826409]
[1733853268808,0.3608,94890.0,94869.0,0.67121166]
[1733853268809,0.36092,94890.0,94875.0,0.18826409]
[1733853269009,0.052681,94876.0,94874.0,0.18826409]
[1733853269218,0.413482,94875.0,94874.0,0.18826409]
[1733853269508,0.36105605,94875.0,94854.0,0.01271983]
[1733853269700,0.36105605,94875.0,94854.0,0.0015813]
[1733853269701,0.05269,94861.0,94854.0,0.0015813]
[1733853269897,0.00012,94855.0,94854.0,0.0015813]
[1733853270310,0.00012,94855.0,94854.0,0.06564865]
[1733853270515,0.00012,94855.0,94854.0,0.0542753]
[1733853271511,0.052813,94855.0,94854.0,0.0015813]
[1733853271708,0.00012,94855.0,94854.0,0.0015813]
[1733853271899,0.3608,94864.0,94854.0,0.0015813]
[1733853271900,0.05269,94861.0,94854.0,0.0015813]
[1733853272211,0.3608,94864.0,94854.0,0.0015813]
[1733853272212,0.052691,94858.0,94854.0,0.0015813]
[1733853272411,0.052691,94858.0,94855.0,0.052693]
[1733853272600,0.052693,94855.0,94854.0,0.0015813]
[1733853273006,0.052813,94855.0,94854.0,0.005]
[1733853273201,0.0527,94842.0,94841.0,9.058e-05]
[1733853273613,0.05282,94842.0,94841.0,9.058e-05]
[1733853275719,0.05295144,94842.0,94841.0,9.058e-05]
[1733853276018,0.05271,94825.0,94816.0,0.3608]
[1733853276317,6e-05,94817.0,94816.0,0.01103242]
[1733853276522,6e-05,94817.0,94807.0,0.3608]
[1733853276826,0.24627131,94820.0,94807.0,0.3608]
[1733853277111,0.052721,94806.0,94801.0,0.00011155]
[1733853277312,0.052723,94802.0,94801.0,0.00011155]
[1733853277510,0.413523,94802.0,94801.0,0.00011155]
[1733853277705,0.409523,94802.0,94801.0,0.00011155]
[1733853277901,8.079e-05,94805.0,94801.0,0.00011155]
[1733853278317,8.079e-05,94805.0,94804.0,0.00275998]
[1733853279216,8.079e-05,94805.0,94804.0,0.41628198]
[1733853279415,0.02118361,94816.0,94804.0,0.36355998]
[1733853279606,0.05271,94825.0,94813.0,0.052716]
[1733853279917,0.60767132,94830.0,94824.0,0.00275998]
[1733853280213,0.052713,94820.0,94805.0,0.05272]
[1733853280410,0.0001013,94819.0,94805.0,0.01105716]
[1733853280605,0.0001013,94819.0,94804.0,0.3608]
[1733853280606,6e-05,94806.0,94804.0,0.3608]
[1733853280812,6e-05,94806.0,94805.0,0.052721]
[1733853281014,0.0001013,94819.0,94811.0,0.052717]
[1733853281215,0.0001013,94819.0,94815.0,0.052715]
[1733853281915,0.001,94825.0,94824.0,0.05271]
[1733853282219,0.001,94825.0,94824.0,0.00275998]
[1733853282428,0.05271,94825.0,94824.0,0.00275998]
[1733853282920,0.05281705,94825.0,94824.0,0.00275998]
[1733853283523,0.00010705,94825.0,94824.0,0.00275998]
[1733853283708,0.052693,94856.0,94834.0,0.052704]
[1733853283912,0.24627131,94850.0,94839.0,0.413502]
[1733853284113,0.24627131,94850.0,94839.0,0.3608]
[1733853284714,0.0527,94843.0,94839.0,0.3608]
[1733853284910,8.227e-05,94849.0,94831.0,0.3608]
[1733853285227,0.02170947,94849.0,94848.0,0.052697]
[1733853285717,8.227e-05,94849.0,94848.0,0.052697]
[1733853286620,8.227e-05,94849.0,94831.0,0.3608]
[1733853286815,0.052706,94832.0,94831.0,0.3608]
[1733853287021,0.05271,94825.0,94821.0,0.413512]
[1733853287215,0.05271,94825.0,94821.0,0.052712]
[1733853287407,0.052715,94817.0,94809.0,0.052718]
[1733853287613,6e-05,94822.0,94821.0,0.052712]
[1733853287814,0.3608,94865.0,94822.0,0.052711]
[1733853288013,0.3608,94865.0,94821.0,0.3608]
[1733853288014,0.24627131,94850.0,94834.0,0.3608]
[1733853288311,0.05271,94825.0,94823.0,0.3608]
[1733853288514,0.05271,94825.0,94821.0,0.00275998]
[1733853288515,0.052712,94822.0,94821.0,0.00275998]
[1733853289724,0.053712,94822.0,94821.0,0.00275998]
[1733853290819,0.052723,94802.0,94801.0,0.00011155]
[1733853291011,0.413523,94802.0,94784.0,0.3608]
[1733853291214,0.7216,94786.0,94750.0,0.00136]
[1733853291425,0.24627131,94794.0,94770.0,0.01113589]
[1733853291426,0.05274,94771.0,94770.0,0.01113589]
[1733853291620,0.052743,94765.0,94742.0,0.052756]
[1733853291925,6e-05,94743.0,94742.0,0.01126244]
[1733853292115,6e-05,94743.0,94742.0,0.052756]
[1733853292116,0.00017128,94743.0,94742.0,0.052756]
[1733853292617,0.00017128,94743.0,94741.0,0.3608]
[1733853292618,0.3608,94757.0,94741.0,0.37183509]
[1733853292822,0.3608,94766.0,94764.0,0.052744]
[1733853293022,0.3608,94766.0,94754.0,0.3608]
[1733853293023,0.3608,94768.0,94756.0,0.00012]
[1733853293217,0.3608,94768.0,94767.0,0.052742]
[1733853293415,0.36090096,94768.0,94767.0,0.052862]
[1733853293611,0.00010096,94768.0,94767.0,0.052862]
[1733853293822,0.3608,94787.0,94770.0,0.05274]
[1733853293823,0.05274,94772.0,94770.0,0.05274]
[1733853294218,0.05274,94772.0,94771.0,0.00012]
[1733853294818,0.05287659,94772.0,94771.0,0.00012]
[1733853295232,0.06383216,94772.0,94771.0,0.00012]
[1733853296534,0.00013659,94772.0,94771.0,0.00012]
[1733853297820,0.00013659,94772.0,94771.0,0.36092]
[1733853298620,0.052731,94788.0,94771.0,0.36092]
[1733853298828,0.24627131,94790.0,94771.0,0.36092]
[1733853298829,0.052732,94786.0,94771.0,0.36092]
[1733853299022,0.24627131,94781.0,94771.0,0.00012]
[1733853299225,0.052739,94773.0,94772.0,0.052739]
[1733853299621,0.05287191,94773.0,94772.0,0.052739]
[1733853300025,0.00013291,94773.0,94756.0,0.00012]
[1733853300230,0.052748,94758.0,94757.0,0.052747]
[1733853300431,0.052808,94758.0,94757.0,0.052747]
[1733853300927,6e-05,94758.0,94757.0,0.052747]
[1733853301325,0.24627131,94770.0,94763.0,0.052744]
[1733853301526,0.24627131,94770.0,94756.0,0.00012]
[1733853301730,0.052748,94758.0,94756.0,0.00012]
[1733853302036,0.36086,94757.0,94756.0,0.00012]
[1733853302730,0.36086,94757.0,94738.0,0.00012795]
[1733853302936,0.3608,94745.0,94738.0,0.00012795]
[1733853303225,0.052753,94748.0,94744.0,0.052755]
[1733853303432,0.24627131,94750.0,94744.0,0.052755]
[1733853303433,0.052753,94747.0,94744.0,0.052755]
[1733853303631,0.052753,94747.0,94743.0,0.052755]
[1733853304021,0.052754,94746.0,94743.0,0.052755]
[1733853304222,0.3608,94757.0,94741.0,0.3608]
[1733853304426,0.052743,94765.0,94764.0,0.052742]
[1733853304623,0.001,94757.0,94756.0,0.413548]
[1733853304828,0.001,94757.0,94738.0,0.00012795]
[1733853304829,0.052755,94743.0,94738.0,0.00012795]
[1733853305027,0.052755,94743.0,94719.0,0.37246907]
[1733853305028,0.052773,94711.0,94709.0,0.18826409]
[1733853305234,0.24627131,94719.0,94699.0,0.3608]
[1733853305426,0.05277,94717.0,94702.0,0.052778]
[1733853305623,0.37219079,94723.0,94700.0,0.11113856]
[1733853305624,0.3608,94723.0,94700.0,0.11113856]
[1733853305825,0.052779,94701.0,94700.0,0.1]
[1733853306026,0.0001324,94701.0,94700.0,0.1]
[1733853306426,0.0529114,94701.0,94700.0,0.1]
[1733853306936,0.052791,94679.0,94674.0,0.36088468]
[1733853307131,0.02879373,94679.0,94674.0,0.36088468]
[1733853307329,6e-05,94675.0,94674.0,8.468e-05]
[1733853308031,0.36086,94675.0,94653.0,0.3608]
[1733853308237,0.052802,94660.0,94653.0,0.3608]
[1733853308437,6e-05,94654.0,94653.0,0.3608]
[1733853308849,6e-05,94654.0,94635.0,0.3608]
[1733853309026,6e-05,94654.0,94630.0,0.3608]
[1733853309027,0.3608,94642.0,94630.0,0.3608]
[1733853309226,6e-05,94636.0,94630.0,0.3608]
[1733853309439,0.3608,94642.0,94630.0,0.3608]
[1733853309440,6e-05,94631.0,94630.0,0.3608]
[1733853310026,0.40983244,94642.0,94631.0,0.052818]
[1733853310232,0.3608,94633.0,94631.0,0.052818]
[1733853310736,0.05282,94628.0,94621.0,0.00012348]
[1733853310941,0.3608,94623.0,94622.0,0.052823]
[1733853311329,0.35926417,94623.0,94622.0,0.052823]
[1733853311531,0.35926417,94623.0,94621.0,0.00012348]
[1733853312038,0.41208717,94623.0,94621.0,0.00012348]
[1733853312239,0.35926417,94623.0,94621.0,0.00012348]
[1733853312628,0.41208717,94623.0,94621.0,0.00012348]
[1733853312833,0.00012823,94622.0,94621.0,0.00012348]
[1733853313030,0.00012823,94622.0,94588.0,0.3608]
[1733853313031,0.35877807,94623.0,94588.0,0.3608]
[1733853313334,0.35877807,94623.0,94585.0,0.052843]
[1733853313335,0.36086,94601.0,94585.0,0.052843]
[1733853313846,0.36086,94601.0,94577.0,0.3608]
[1733853313847,0.72166,94601.0,94577.0,0.3608]
[1733853314038,0.72166,94601.0,94569.0,0.3608]
[1733853314039,0.052842,94588.0,94569.0,0.3608]
[1733853314341,1.02166,94601.0,94569.0,0.3608]
[1733853314342,6e-05,94570.0,94569.0,0.3608]
[1733853314641,0.24627131,94587.0,94569.0,0.3608]
[1733853314836,0.3608,94583.0,94569.0,0.413653]
[1733853315041,0.3608,94583.0,94569.0,0.052853]
[1733853315239,0.3608,94583.0,94564.0,0.3608]
[1733853315442,0.001,94570.0,94564.0,0.3608]
[1733853315643,6e-05,94565.0,94564.0,0.3608]
[1733853315941,6e-05,94565.0,94556.0,0.00013599]
[1733853316241,0.001,94570.0,94557.0,0.052859]
[1733853316737,0.3608,94564.0,94557.0,0.052859]
[1733853316946,0.3608,94564.0,94556.0,0.00013599]
[1733853317240,6e-05,94557.0,94556.0,0.00013599]
[1733853317645,6e-05,94557.0,94537.0,0.05287]
[1733853317646,0.052861,94554.0,94524.0,0.3608]
[1733853317830,0.24627131,94534.0,94525.0,0.3608]
[1733853318643,0.3608,94556.0,94533.0,0.3608]
[1733853318840,0.001,94557.0,94555.0,0.05286]
[1733853319143,0.001,94557.0,94555.0,0.05298]
[1733853319336,0.052847,94579.0,94555.0,0.05298]
[1733853319532,0.0216163,94575.0,94555.0,0.05298]
[1733853319731,0.0216163,94575.0,94555.0,0.00012]
[1733853319942,0.3608,94590.0,94571.0,0.052851]
[1733853320443,0.02103047,94581.0,94571.0,0.052851]
[1733853321152,0.001,94575.0,94571.0,0.052851]
[1733853321338,0.001,94575.0,94573.0,0.05285]
[1733853321651,0.001,94575.0,94571.0,0.3608]
[1733853321652,9.945e-05,94589.0,94578.0,0.052847]
[1733853321950,9.945e-05,94589.0,94588.0,0.00012]
[1733853322146,0.05294045,94589.0,94588.0,0.00012]
[1733853322442,0.06423679,94589.0,94588.0,0.00012]
[1733853323648,9.945e-05,94589.0,94588.0,0.00012]
[1733853324145,9.945e-05,94589.0,94588.0,0.36092]
[1733853324347,1.5,94635.0,94588.0,0.36092]
[1733853324348,0.24627131,94620.0,94601.0,0.052834]
[1733853324539,0.35516,94652.0,94596.0,0.3608]
[1733853324540,0.24627131,94630.0,94596.0,0.3608]
[1733853324738,0.052821,94626.0,94619.0,0.00012]
[1733853324940,0.3608,94628.0,94615.0,0.3608]
[1733853325141,0.01098752,94641.0,94623.0,0.3608]
[1733853325348,0.3608,94658.0,94623.0,0.3608]
[1733853325349,0.3608,94658.0,94641.0,0.052812]
[1733853325649,0.02150848,94646.0,94640.0,0.00012]
[1733853326041,0.00011615,94657.0,94640.0,0.00012]
[1733853326444,0.00011615,94657.0,94656.0,0.00012]
[1733853327239,0.052789,94683.0,94656.0,0.00012]
[1733853327549,0.052789,94683.0,94682.0,0.00012]
[1733853328438,0.05291092,94683.0,94682.0,0.00012]
[1733853328751,0.08460543,94683.0,94682.0,0.00012]
[1733853329447,0.33181643,94683.0,94645.0,0.00011079]
[1733853329746,0.3608,94654.0,94645.0,0.00011079]
[1733853331049,0.3608,94654.0,94645.0,0.00311079]
[1733853331050,0.3608,94646.0,94645.0,0.00311079]
[1733853331243,0.052812,94641.0,94609.0,0.3608]
[1733853331458,0.24627131,94620.0,94603.0,0.052833]
[1733853331648,0.052832,94607.0,94590.0,0.0962]
[1733853331842,0.3608,94615.0,94590.0,0.3962]
[1733853332042,0.3608,94615.0,94600.0,0.3608]
[1733853332339,0.052818,94631.0,94611.0,0.052829]
[1733853332548,0.24627131,94630.0,94618.0,0.3608]
[1733853332746,0.3608,94632.0,94618.0,0.3608]
[1733853332949,0.24627131,94660.0,94630.0,0.3608]
[1733853333149,0.052809,94648.0,94638.0,0.3608]
[1733853333355,7.508e-05,94647.0,94638.0,0.3608]
[1733853334552,7.508e-05,94647.0,94628.0,0.3608]
[1733853334553,0.3608,94643.0,94628.0,0.3608]
[1733853334759,0.3608,94643.0,94609.0,0.3608]
[1733853334760,0.3608,94633.0,94609.0,0.3608]
[1733853334941,0.24627131,94620.0,94610.0,0.05283]
[1733853335145,0.052821,94625.0,94610.0,0.05283]
[1733853335546,0.052825,94618.0,94609.0,0.3608]
[1733853335746,0.052825,94618.0,94602.0,0.3608]
[1733853335954,0.3608,94618.0,94602.0,0.3608]
[1733853336152,0.052827,94615.0,94602.0,0.3608]
[1733853336452,0.3608,94618.0,94602.0,0.3608]
[1733853336951,0.3608,94618.0,94608.0,0.05283]
[1733853337251,0.3608,94618.0,94602.0,0.3608]
[1733853337252,0.3618,94618.0,94602.0,0.3608]
[1733853337461,0.001,94618.0,94610.0,0.3608]
[1733853337648,0.001,94618.0,94617.0,0.052826]
[1733853338045,0.3608,94638.0,94622.0,0.052823]
[1733853338251,0.3608,94625.0,94603.0,0.18826409]
[1733853338547,0.3608,94625.0,94611.0,0.3608]
[1733853338750,0.12469753,94676.0,94611.0,0.3608]
[1733853338751,0.3608,94645.0,94623.0,0.3608]
[1733853338951,0.413606,94652.0,94623.0,0.3608]
[1733853339159,0.3608,94666.0,94645.0,0.05281]
[1733853339160,0.0111266,94659.0,94645.0,0.05281]
[1733853339349,0.00056001,94652.0,94647.0,0.052809]
[1733853339549,0.01082037,94670.0,94657.0,0.052803]
[1733853339858,0.01082037,94670.0,94646.0,0.3608]
[1733853339859,0.24627131,94670.0,94658.0,0.052802]
[1733853340064,0.29906731,94670.0,94664.0,0.3608]
[1733853340358,0.00013164,94669.0,94664.0,0.3608]
[1733853340549,0.00013164,94669.0,94668.0,0.052797]
[1733853341059,0.00013164,94669.0,94668.0,0.413597]
[1733853341558,0.00113164,94669.0,94668.0,0.3608]
[1733853341749,0.00113164,94669.0,94656.0,0.3608]
[1733853341750,0.052801,94661.0,94656.0,0.3608]
[1733853341944,0.00113164,94669.0,94661.0,0.052801]
[1733853342251,0.00113164,94669.0,94658.0,0.3608]
[1733853342450,0.00113164,94669.0,94665.0,0.052798]
[1733853342654,0.00113164,94669.0,94668.0,0.3608]
[1733853343166,0.36193164,94669.0,94653.0,0.0996]
[1733853343461,0.052801,94662.0,94654.0,0.052805]
[1733853344558,0.24627131,94663.0,94654.0,0.052805]
[1733853344559,0.052802,94661.0,94654.0,0.052805]
[1733853345257,0.24627131,94663.0,94653.0,0.001]
[1733853345458,0.24627131,94663.0,94659.0,0.052802]
[1733853346260,0.24627131,94663.0,94657.0,0.3608]
[1733853346261,0.29907131,94663.0,94657.0,0.3608]
[1733853346661,0.29907131,94663.0,94654.0,0.001]
[1733853347454,0.29907131,94663.0,94657.0,0.001]
[1733853348261,0.413603,94658.0,94657.0,0.001]
[1733853348949,0.3608,94658.0,94657.0,0.001]
[1733853349149,0.00013164,94669.0,94657.0,0.3608]
[1733853349354,0.00013164,94669.0,94667.0,0.052797]
[1733853350764,0.00213164,94669.0,94667.0,0.052797]
[1733853350965,0.36293164,94669.0,94667.0,0.052797]
[1733853351265,0.36293164,94669.0,94655.0,0.3608]
[1733853351266,0.36293164,94669.0,94646.0,0.3608]
[1733853351561,0.36293164,94669.0,94653.0,0.052806]
[1733853351562,0.052803,94658.0,94653.0,0.052806]
[1733853351751,0.3608,94660.0,94645.0,0.05281]
[1733853351952,0.3608,94651.0,94645.0,0.05281]
[1733853352154,0.3608,94651.0,94645.0,0.01119864]
[1733853352349,0.052806,94652.0,94647.0,0.052809]
[1733853352760,0.3608,94660.0,94646.0,0.3608]
[1733853352955,1.5,94667.0,94646.0,0.54881377]
[1733853352956,0.052803,94658.0,94646.0,0.54881377]
[1733853353156,0.00213164,94669.0,94656.0,0.3608]
[1733853353157,0.00013164,94669.0,94656.0,0.3608]
[1733853353559,0.00013164,94669.0,94662.0,0.18801377]
[1733853353864,0.00013164,94669.0,94668.0,0.052797]
[1733853354062,0.00013164,94669.0,94665.0,0.3608]
[1733853354063,0.05279,94681.0,94667.0,0.25068502]
[1733853354260,0.05279,94681.0,94675.0,0.18888318]
[1733853354573,0.3608,94692.0,94687.0,0.052787]
[1733853354864,0.052785,94691.0,94687.0,0.052787]
[1733853355158,0.37208796,94692.0,94688.0,0.052786]
[1733853355159,9.384e-05,94690.0,94688.0,0.052786]